bitfinex/quotes_SOLUSD_20250130
["timestamp","ask_amount","ask_price","bid_price","bid_amount"]
[1738250741879,1.74748318,241.82,241.81,4.1354]
[1738250742185,1.0,241.86,241.81,14.474]
[1738250742382,1.0,241.86,241.84,19.5574923]
[1738250743304,1.0,241.86,241.85,4.1347]
[1738250743986,1.0,241.8,241.77,10.3403]
[1738250744181,0.74748318,241.84,241.76,19.5574923]
[1738250744182,1.0,241.78,241.76,19.5574923]
[1738250744488,1.0,241.78,241.75,4.1365]
[1738250744489,1.0,241.76,241.75,4.1365]
[1738250745279,1.0,241.73,241.72,34.0367923]
[1738250746502,3.06985904,241.73,241.72,4.137]
[1738250747122,3.06985904,241.73,241.66,29.9022923]
[1738250747277,1.74748318,241.7,241.67,4.1378]
[1738250747477,1.0,241.68,241.67,4.1378]
[1738250748577,3.06985904,241.68,241.67,4.1378]
[1738250748803,3.81734222,241.68,241.67,4.1378]
[1738250748980,1.0,241.64,241.63,4.1385]
[1738250749587,1.0,241.61,241.6,19.5574923]
[1738250750218,1.0,241.61,241.6,12.1026716]
[1738250750384,2.81734222,241.64,241.56,19.5574923]
[1738250750385,1.0,241.57,241.56,19.5574923]
[1738250751685,1.0,241.57,241.56,23.6971923]
[1738250752103,1.74748318,241.57,241.56,4.1397]
[1738250752577,1.0,241.57,241.56,4.1397]
[1738250752999,1.0,241.55,241.51,10.3515]
[1738250753195,1.0,241.55,241.54,19.5574923]
[1738250754097,1.0,241.55,241.54,23.6975923]
[1738250754781,0.74748318,241.61,241.54,47.45964083]
[1738250754999,0.74748318,241.63,241.59,19.5574923]
[1738250755306,0.74748318,241.66,241.61,19.5574923]
[1738250755980,0.77599206,241.65,241.62,4.1387]
[1738250756185,0.74748318,241.61,241.58,4.1394]
[1738250756631,0.74748318,241.63,241.58,4.1394]
[1738250756797,2.81853563,241.65,241.61,19.5574923]
[1738250757295,2.07105245,241.65,241.61,19.5574923]
[1738250757689,2.81853563,241.65,241.59,19.5574923]
[1738250757891,0.74748318,241.63,241.6,4.139]
[1738250758103,0.74748318,241.61,241.6,4.139]
[1738250758304,0.74748318,241.59,241.57,4.1395]
[1738250759183,0.77619262,241.58,241.55,4.1397]
[1738250759502,2.07105245,241.64,241.54,4.1699]
[1738250759503,0.74748318,241.56,241.54,4.1699]
[1738250759684,0.74748318,241.57,241.54,4.1699]
[1738250759884,0.74748318,241.57,241.54,0.03]
[1738250760084,2.07105245,241.58,241.54,0.03]
[1738250760386,2.07105245,241.58,241.57,19.5574923]
[1738250761322,5.245e-05,241.58,241.57,32.96934083]
[1738250762120,0.74748318,241.68,241.58,13.41184853]
[1738250762282,0.74748318,241.68,241.64,19.5574923]
[1738250762794,0.74748318,241.75,241.66,19.5574923]
[1738250762999,0.74748318,241.75,241.68,19.5574923]
[1738250763208,0.74748318,241.72,241.66,19.5574923]
[1738250763407,0.74748318,241.68,241.62,19.5574923]
[1738250763722,0.74748318,241.7,241.66,19.5574923]
[1738250763892,0.74748318,241.72,241.67,14.4824]
[1738250764089,0.74748318,241.72,241.68,19.5574923]
[1738250764406,0.74748318,241.74,241.68,19.5574923]
[1738250764582,0.74748318,241.72,241.68,19.5574923]
[1738250765011,5.09423514,241.75,241.68,19.5574923]
[1738250765592,0.74748318,241.73,241.68,19.5574923]
[1738250765930,0.74748318,241.74,241.7,19.5574923]
[1738250766211,5.09423514,241.75,241.7,19.5574923]
[1738250766384,5.09423514,241.72,241.7,19.5574923]
[1738250766901,3.514e-05,241.72,241.71,13.41184853]
[1738250767203,3.514e-05,241.72,241.7,19.5574923]
[1738250767510,0.74751832,241.72,241.7,19.5574923]
[1738250767698,0.74748318,241.72,241.7,19.5574923]
[1738250768104,0.74748318,241.72,241.71,4.1371]
[1738250768396,0.74748318,241.74,241.71,4.1371]
[1738250768598,0.77566042,241.77,241.71,4.1371]
[1738250768599,0.74748318,241.72,241.71,4.1371]
[1738250769013,0.74748318,241.72,241.69,10.3438]
[1738250769205,9.17565027,241.73,241.71,19.5574923]
[1738250769405,4.011e-05,241.72,241.71,32.96934083]
[1738250770596,0.74752329,241.72,241.71,23.6945923]
[1738250771014,4.011e-05,241.72,241.71,23.6945923]
[1738250772115,9.17565027,241.83,241.74,20.0]
[1738250772412,9.17565027,241.83,241.71,56.2561923]
[1738250772413,9.17565027,241.83,241.77,19.5574923]
[1738250772595,19.5574923,241.81,241.73,19.5574923]
[1738250772807,0.77556704,241.8,241.71,34.0374923]
[1738250772994,0.77556704,241.8,241.73,19.5574923]
[1738250773625,0.77556704,241.8,241.74,4.1366]
[1738250774494,0.77556704,241.8,241.7,4.1373]
[1738250774495,19.5574923,241.79,241.7,4.1373]
[1738250774709,19.5574923,241.75,241.7,4.1373]
[1738250775229,6.5432,241.77,241.71,19.5574923]
[1738250775405,0.77554914,241.8,241.73,19.5574923]
[1738250776002,0.77554914,241.8,241.74,4.1366]
[1738250777321,0.77554914,241.8,241.71,4.1371]
[1738250777322,19.5574923,241.77,241.71,4.1371]
[1738250777527,0.77568684,241.76,241.71,4.1371]
[1738250778839,19.5574923,241.73,241.68,0.03]
[1738250779145,19.5574923,241.7,241.68,0.03]
[1738250779348,0.77600241,241.69,241.68,0.03]
[1738250780120,21.33349471,241.69,241.68,0.03]
[1738250780641,21.33349471,241.69,241.57,0.03]
[1738250780642,1.0,241.66,241.57,0.03]
[1738250780800,19.5574923,241.59,241.57,0.03]
[1738250781002,19.5574923,241.6,241.57,0.03]
[1738250781204,0.77622177,241.59,241.57,0.03]
[1738250781806,19.5574923,241.58,241.57,0.03]
[1738250783004,19.6829823,241.58,241.57,0.03]
[1738250784320,26.7775823,241.58,241.57,0.03]
[1738250785045,1.0,241.56,241.43,19.5574923]
[1738250785229,19.5574923,241.48,241.42,4.1421]
[1738250785536,1.7766245,241.55,241.42,4.1421]
[1738250785537,19.5574923,241.5,241.43,19.5574923]
[1738250785837,0.77659673,241.49,241.43,19.5574923]
[1738250786012,1.0,241.56,241.45,19.5574923]
[1738250786013,19.5574923,241.52,241.45,19.5574923]
[1738250786337,0.77650147,241.51,241.44,4.1418]
[1738250786849,0.77655268,241.55,241.49,19.5574923]
[1738250787005,6.0946,241.58,241.53,19.5574923]
[1738250787200,19.5574923,241.62,241.53,19.5574923]
[1738250787441,0.77621632,241.61,241.53,19.5574923]
[1738250787641,19.5574923,241.6,241.51,19.5574923]
[1738250787810,0.77625786,241.59,241.51,19.5574923]
[1738250788145,19.5574923,241.52,241.44,14.4963]
[1738250788332,1.77625786,241.59,241.44,14.4963]
[1738250788333,19.5574923,241.5,241.44,14.4963]
[1738250788501,0.7765411,241.49,241.44,14.4963]
[1738250788701,0.77653881,241.49,241.44,14.4963]
[1738250788923,19.5574923,241.54,241.46,13.41184853]
[1738250789142,19.5574923,241.58,241.51,19.5574923]
[1738250789335,0.77633284,241.57,241.51,19.5574923]
[1738250789540,19.5574923,241.56,241.47,19.5574923]
[1738250789742,19.5574923,241.54,241.47,19.5574923]
[1738250789917,0.77648183,241.53,241.45,19.5574923]
[1738250790106,19.5574923,241.52,241.44,14.4963]
[1738250790446,2.12549,241.59,241.44,4.1418]
[1738250790447,19.5574923,241.5,241.44,4.1418]
[1738250790662,0.77656173,241.49,241.44,4.1418]
[1738250791221,19.5574923,241.5,241.44,4.1418]
[1738250791422,0.77658689,241.49,241.44,4.1418]
[1738250792556,0.77658689,241.49,241.42,4.1421]
[1738250792718,19.5574923,241.48,241.42,4.1421]
[1738250792918,19.5574923,241.46,241.42,4.1421]
[1738250793118,19.5574923,241.48,241.44,0.03]
[1738250793349,0.77664636,241.47,241.44,0.03]
[1738250794425,19.5574923,241.46,241.44,0.03]
[1738250794741,0.77675925,241.45,241.44,0.03]
[1738250795129,0.77668005,241.47,241.44,0.03]
[1738250795328,19.5574923,241.45,241.44,0.03]
[1738250795929,20.33417235,241.47,241.44,0.03]
[1738250796323,0.77668005,241.47,241.44,0.03]
[1738250796523,0.77659372,241.48,241.44,0.03]
[1738250796941,19.5574923,241.47,241.44,0.03]
[1738250797140,0.77663854,241.46,241.44,0.03]
[1738250797651,19.5574923,241.45,241.44,0.03]
[1738250797836,19.6829823,241.45,241.44,0.03]
[1738250798149,20.45984637,241.45,241.44,0.03]
[1738250798642,1.0,241.4,241.26,10.3618]
[1738250798847,19.5574923,241.29,241.23,4.1454]
[1738250799050,19.5574923,241.29,241.23,14.5089]
[1738250799345,19.5574923,241.27,241.23,14.5089]
[1738250799530,19.5574923,241.27,241.23,13.5089]
[1738250800134,19.5574923,241.25,241.23,3.1454]
[1738250800333,0.77727624,241.24,241.12,19.5574923]
[1738250800537,19.5574923,241.23,241.14,19.5574923]
[1738250800832,19.5574923,241.29,241.2,19.5574923]
[1738250801029,0.77724108,241.28,241.2,19.5574923]
[1738250801230,0.77724108,241.28,241.12,6.3318]
[1738250801231,19.5574923,241.27,241.19,13.41184853]
[1738250801425,19.5574923,241.21,241.12,25.8892923]
[1738250801630,19.5574923,241.21,241.12,32.96934083]
[1738250802030,19.5574923,241.25,241.14,19.5574923]
[1738250802231,19.5574923,241.2,241.17,13.41184853]
[1738250802545,19.5574923,241.22,241.14,13.41184853]
[1738250802733,0.77744477,241.21,241.14,13.41184853]
[1738250802939,19.5574923,241.22,241.16,13.41184853]
[1738250804026,19.5574923,241.2,241.16,13.41184853]
[1738250804355,19.5574923,241.2,241.15,14.5136]
[1738250804356,19.5574923,241.17,241.15,4.1467]
[1738250804560,0.77755142,241.16,241.1,1.005]
[1738250804752,19.5574923,241.12,241.11,4.1474]
[1738250804930,19.5574923,241.14,241.11,4.1474]
[1738250805438,19.5574923,241.14,241.12,0.03]
[1738250805967,19.5574923,241.16,241.12,13.44184853]
[1738250807860,19.5574923,241.14,241.12,4.1772]
[1738250808150,0.77768731,241.13,241.12,4.1772]
[1738250808735,19.5574923,241.14,241.12,4.1772]
[1738250809642,19.5574923,241.21,241.14,13.41184853]
[1738250809970,7.1297,241.31,241.18,13.41184853]
[1738250809971,19.5574923,241.27,241.18,13.41184853]
[1738250810135,0.77728083,241.26,241.19,19.5574923]
[1738250810331,0.77727725,241.25,241.2,13.41184853]
[1738250810564,19.5574923,241.25,241.2,13.41184853]
[1738250810766,19.5574923,241.22,241.15,19.5574923]
[1738250810938,0.77745845,241.21,241.15,19.5574923]
[1738250811137,19.5574923,241.24,241.16,13.41184853]
[1738250811565,19.5574923,241.26,241.18,13.41184853]
[1738250811770,5.05096605,241.29,241.13,23.7045923]
[1738250811771,19.5574923,241.21,241.13,23.7045923]
[1738250812055,19.5574923,241.19,241.13,4.1471]
[1738250812238,0.77753481,241.18,241.13,4.1471]
[1738250812439,19.5574923,241.17,241.13,4.1471]
[1738250812662,0.7776361,241.16,241.09,10.33013349]
[1738250812852,0.7776361,241.16,241.08,29.9273923]
[1738250813054,7.95876996,241.28,241.11,13.41184853]
[1738250813055,19.5574923,241.19,241.11,13.41184853]
[1738250813368,20.33499081,241.18,241.1,19.5574923]
[1738250813552,20.33499081,241.18,241.01,6.6294]
[1738250813553,19.5574923,241.16,241.09,13.41184853]
[1738250813751,0.7776382,241.15,241.1,4.1476]
[1738250814052,19.5574923,241.12,241.08,4.1478]
[1738250814237,19.6829823,241.2,241.06,19.5574923]
[1738250814238,19.5574923,241.14,241.06,19.5574923]
[1738250814659,19.5574923,241.14,241.07,13.41184853]
[1738250814867,0.77767639,241.13,241.07,13.41184853]
[1738250815373,0.77767639,241.13,241.06,19.5574923]
[1738250815535,19.5574923,241.12,241.06,13.41184853]
[1738250815734,0.77774902,241.11,241.06,13.41184853]
[1738250815960,19.5574923,241.1,241.07,4.1481]
[1738250816950,19.5574923,241.08,241.01,14.5221]
[1738250817237,19.5574923,241.06,241.01,4.1492]
[1738250817452,19.5574923,241.04,241.01,4.1492]
[1738250817860,19.5574923,241.04,240.98,13.41184853]
[1738250818487,19.62189254,241.05,240.92,0.99997671]
[1738250818641,19.62189254,241.05,240.99,19.5574923]
[1738250818840,8.40123637,241.03,241.01,19.5574923]
[1738250819057,3.637e-05,241.03,241.01,19.5574923]
[1738250819377,2.21439254,241.05,241.04,20.0]
[1738250819580,9.254e-05,241.05,241.04,39.5574923]
[1738250820252,63.74154973,241.11,241.04,39.5574923]
[1738250820443,63.74154973,241.11,241.07,19.5574923]
[1738250820768,1.0,241.1,241.07,19.5574923]
[1738250820974,1.0,241.07,241.05,19.5574923]
[1738250821285,1.0,241.02,240.97,19.5574923]
[1738250821452,2.0,241.0,240.95,19.5574923]
[1738250821775,1.0,240.98,240.95,19.5574923]
[1738250821980,1.5,241.0,240.95,19.5574923]
[1738250822346,1.0,241.02,240.99,19.5574923]
[1738250822676,1.0,241.04,241.01,19.5574923]
[1738250822885,0.5,241.03,240.99,19.5574923]
[1738250823884,1.0,241.04,240.99,19.5574923]
[1738250824378,0.5,240.98,240.95,19.5574923]
[1738250824571,1.5,241.0,240.95,19.5574923]
[1738250824773,0.5,241.0,240.95,19.5574923]
[1738250825149,1.5443,241.06,240.84,32.96934083]
[1738250825150,1.0,240.96,240.91,19.5574923]
[1738250825461,1.0,240.93,240.85,19.5574923]
[1738250825646,1.0,240.93,240.79,0.5]
[1738250825647,1.0,240.91,240.87,19.5574923]
[1738250825851,1.0,240.94,240.89,19.5574923]
[1738250826078,0.5,240.97,240.93,19.5574923]
[1738250826279,0.5,240.98,240.95,19.5574923]
[1738250826782,0.5,240.98,240.85,17.13184853]
[1738250826783,1.0,241.0,240.97,19.5574923]
[1738250826976,1.0,241.03,240.97,19.5574923]
[1738250827172,1.0,241.03,240.99,19.5574923]
[1738250827850,0.5,241.0,240.95,19.5574923]
[1738250828048,20.5574923,241.03,240.92,6.4534]
[1738250828049,1.0,241.01,240.93,19.5574923]
[1738250828249,1.0,240.98,240.91,19.5574923]
[1738250828472,1.5,240.98,240.91,19.5574923]
[1738250828790,1.0,240.98,240.93,19.5574923]
[1738250829156,1.5,240.98,240.93,19.5574923]
[1738250829356,1.0,241.01,240.95,19.5574923]
[1738250829683,1.0,241.03,240.97,19.5574923]
[1738250830054,1.5,241.04,240.97,19.5574923]
[1738250831197,1.0,241.08,240.96,20.0574923]
[1738250831351,62.80454973,241.11,241.07,19.5574923]
[1738250831552,62.80454973,241.11,240.97,13.41184853]
[1738250831553,62.80454973,241.11,241.09,19.5574923]
[1738250832574,62.80454973,241.11,241.04,19.5574923]
[1738250832757,1.0,241.06,241.02,19.5574923]
[1738250832953,0.5,241.07,241.0,26.1595923]
[1738250833154,0.5,241.04,240.98,19.5574923]
[1738250833353,1.0,241.0,240.97,30.0]
[1738250833571,1.0,241.0,240.94,19.5574923]
[1738250833774,1.0,241.0,240.94,52.92326413]
[1738250833958,1.0,240.96,240.94,33.36577183]
[1738250834160,1.5,240.96,240.94,33.36577183]
[1738250834562,1.0,240.96,240.94,33.36577183]
[1738250834777,1.5,241.0,240.94,33.36577183]
[1738250834975,0.5,240.97,240.94,33.36577183]
[1738250835188,1.0,240.98,240.94,33.36577183]
[1738250835562,0.5,240.97,240.94,52.92326413]
[1738250835765,1.0,240.98,240.94,33.36577183]
[1738250836175,0.86725333,241.0,240.95,19.52186012]
[1738250836366,19.5574923,240.96,240.95,19.52186012]
[1738250836570,32.26666775,240.99,240.95,11.15534864]
[1738250836890,32.26666775,240.97,240.95,11.15534864]
[1738250837394,32.26666775,240.99,240.95,11.15534864]
[1738250837597,32.26666775,241.03,240.95,11.15534864]
[1738250838307,0.77803272,241.07,240.95,11.15534864]
[1738250838465,32.26666775,240.97,240.95,11.15534864]
[1738250839585,0.77815801,240.96,240.95,11.15534864]
[1738250839803,32.26666775,240.97,240.95,11.15534864]
[1738250839963,32.26666775,240.99,240.95,11.15534864]
[1738250840288,32.26666775,241.03,240.95,43.42201639]
[1738250840996,32.26666775,241.03,240.95,32.26666775]
[1738250841486,33.04465387,241.07,240.99,32.26666775]
[1738250841722,0.77786452,241.06,240.97,32.26666775]
[1738250841905,32.26666775,241.05,240.97,32.26666775]
[1738250843217,95.07121748,241.11,241.03,32.26666775]
[1738250843392,62.80454973,241.11,241.05,32.26666775]
[1738250843593,95.84900648,241.11,241.01,32.26666775]
[1738250843805,32.26666775,241.09,241.01,32.26666775]
[1738250843988,33.04449461,241.09,241.01,32.26666775]
[1738250844493,32.26666775,241.07,240.99,32.26666775]
[1738250845020,62.80454973,241.11,241.03,32.26666775]
[1738250845223,62.80454973,241.11,241.08,32.26666775]
[1738250845381,62.80454973,241.11,241.1,32.26666775]
[1738250846584,62.80454973,241.11,241.08,32.26666775]
[1738250847121,95.07121748,241.11,241.01,32.26666775]
[1738250847427,32.26666775,241.09,241.01,32.26666775]
[1738250847610,0.77777854,241.08,241.01,32.26666775]
[1738250847782,32.26666775,241.09,241.01,32.26666775]
[1738250849019,95.07121748,241.11,241.03,32.26666775]
[1738250849195,62.80454973,241.11,241.05,32.26666775]
[1738250849903,95.07121748,241.11,241.03,32.26666775]
[1738250850226,32.26666775,241.09,241.01,32.26666775]
[1738250851190,32.26666775,241.09,240.96,33.26666775]
[1738250851191,62.80454973,241.11,241.03,32.26666775]
[1738250851389,32.26666775,241.09,241.01,32.26666775]
[1738250851894,95.07121748,241.11,241.03,32.26666775]
[1738250852395,62.80454973,241.11,241.03,32.26666775]
[1738250853198,95.07121748,241.11,241.03,32.26666775]
[1738250853719,62.80454973,241.11,241.05,32.26666775]
[1738250854290,62.80454973,241.11,241.09,32.26666775]
[1738250856891,0.063,241.19,241.12,21.0]
[1738250857109,0.063,241.19,241.13,32.26666775]
[1738250857407,32.26666775,241.16,241.08,32.26666775]
[1738250857991,32.26666775,241.18,241.08,32.26666775]
[1738250858186,32.26666775,241.18,241.01,12.03851139]
[1738250858187,32.26666775,241.18,241.1,32.26666775]
[1738250858604,19.82563916,241.18,241.09,19.82563916]
[1738250858783,0.063,241.19,241.04,20.0]
[1738250858784,0.7774864,241.17,241.07,19.82563916]
[1738250858989,19.82563916,241.14,241.07,19.82563916]
[1738250859191,19.82563916,241.14,241.05,19.82563916]
[1738250859384,19.82563916,241.11,241.01,19.82563916]
[1738250859587,19.82563916,241.13,241.06,19.82563916]
[1738250859986,19.82563916,241.15,241.08,19.82563916]
[1738250860187,19.88863916,241.19,241.1,19.82563916]
[1738250860398,19.88863916,241.19,241.12,19.82563916]
[1738250860696,19.82563916,241.14,241.04,19.82563916]
[1738250860999,19.82563916,241.12,241.04,19.82563916]
[1738250861217,19.82563916,241.12,241.02,19.82563916]
[1738250861516,19.82563916,241.14,241.06,19.82563916]
[1738250862314,19.82563916,241.14,241.04,19.82563916]
[1738250862533,19.82563916,241.12,241.04,19.82563916]
[1738250862693,19.82563916,241.1,241.02,19.82563916]
[1738250863088,19.82563916,241.12,241.04,19.82563916]
[1738250864029,19.82563916,241.06,241.0,0.03]
[1738250865015,20.66647451,241.19,241.05,19.82563916]
[1738250865235,20.66647451,241.19,241.11,19.82563916]
[1738250865597,19.88863916,241.19,241.11,19.82563916]
[1738250866095,0.063,241.19,241.11,19.82563916]
[1738250866500,19.88863916,241.19,241.11,19.82563916]
[1738250868112,0.063,241.19,241.13,19.82563916]
[1738250868306,0.063,241.19,241.08,19.82563916]
[1738250868307,0.063,241.19,241.17,19.82563916]
[1738250868935,0.063,241.19,241.15,19.82563916]
[1738250869806,19.88863916,241.19,241.11,19.82563916]
[1738250870112,19.82563916,241.17,241.09,19.82563916]
[1738250870312,19.82563916,241.17,241.07,19.82563916]
[1738250871402,19.82563916,241.17,241.09,19.82563916]
[1738250871627,0.063,241.19,241.11,19.82563916]
[1738250871628,19.88863916,241.19,241.11,19.82563916]
[1738250871808,19.82563916,241.17,241.09,19.82563916]
[1738250872709,19.82563916,241.17,241.07,19.82563916]
[1738250873722,19.82563916,241.11,241.03,19.82563916]
[1738250873935,19.82563916,241.13,241.03,19.82563916]
[1738250874116,19.82563916,241.11,241.03,19.82563916]
[1738250874317,19.82563916,241.05,241.0,0.03]
[1738250874533,19.82563916,241.03,241.0,0.03]
[1738250875933,19.82563916,241.08,241.0,0.03]
[1738250875934,19.82563916,241.01,241.0,0.03]
[1738250876134,26.01763916,241.01,241.0,0.03]
[1738250876814,26.01763916,241.01,240.85,19.82563916]
[1738250877136,26.01763916,241.01,240.79,6.4349]
[1738250877137,19.82563916,240.91,240.83,19.82563916]
[1738250878820,5.08018254,240.94,240.88,19.82563916]
[1738250879123,0.77829179,240.93,240.86,19.82563916]
[1738250879426,0.77829102,240.93,240.86,19.82563916]
[1738250879636,19.82563916,240.92,240.84,19.82563916]
[1738250880017,0.77839467,240.91,240.84,19.82563916]
[1738250880214,20.60405873,240.92,240.84,19.82563916]
[1738250880411,19.82563916,240.92,240.84,19.82563916]
[1738250880611,19.82563916,240.9,240.82,19.82563916]
[1738250880818,19.82563916,240.92,240.84,19.82563916]
[1738250881845,19.82563916,240.9,240.82,19.82563916]
[1738250882147,19.82563916,240.88,240.8,19.82563916]
[1738250883020,19.82563916,240.9,240.82,19.82563916]
[1738250883428,19.82563916,240.9,240.82,19.32563916]
[1738250883751,5.08018254,240.87,240.82,19.32563916]
[1738250884120,5.08018254,240.87,240.86,19.82563916]
[1738250884747,2.07737189,240.89,240.88,20.0]
[1738250884954,15.66882858,241.07,241.01,19.82563916]
[1738250885242,19.82563916,241.13,241.06,19.82563916]
[1738250885414,19.82563916,241.11,241.04,19.82563916]
[1738250885621,19.82563916,241.11,240.96,19.82563916]
[1738250885622,19.82563916,241.06,240.96,19.82563916]
[1738250885828,19.82563916,241.06,240.98,19.82563916]
[1738250886142,19.82563916,241.12,241.03,19.82563916]
[1738250886352,19.82563916,241.08,240.98,19.82563916]
[1738250886558,19.82563916,241.06,240.87,3.22]
[1738250886721,19.82563916,241.06,240.96,19.82563916]
[1738250886922,19.82563916,241.1,241.02,19.82563916]
[1738250887141,19.82563916,241.12,241.04,19.82563916]
[1738250887735,26.35013916,241.14,241.06,19.82563916]
[1738250888330,2.41565904,241.17,240.96,20.82563916]
[1738250888331,19.82563916,241.16,241.08,19.82563916]
[1738250888536,1.638,241.17,241.1,19.82563916]
[1738250889429,20.60320793,241.18,241.1,19.82563916]
[1738250889624,19.82563916,241.16,241.08,19.82563916]
[1738250889841,19.82563916,241.14,241.06,19.82563916]
[1738250890044,19.82563916,241.16,241.06,19.82563916]
[1738250890436,0.77762181,241.15,241.06,19.82563916]
[1738250890943,19.82563916,241.18,241.1,19.82563916]
[1738250891246,0.063,241.19,241.12,19.82563916]
[1738250891768,0.063,241.14,241.12,19.82563916]
[1738250895827,0.063,241.14,241.13,13.41184853]
[1738250896027,0.063,241.14,241.13,14.41184853]
[1738250896328,0.063,241.19,241.13,1.5377]
[1738250896635,0.063,241.19,241.12,19.82563916]
[1738250896636,0.063,241.19,241.16,19.82563916]
[1738250896836,0.063,241.19,241.18,19.82563916]
[1738250898167,0.063,241.19,241.18,33.23748769]
[1738250898342,0.063,241.19,241.18,53.06312685]
[1738250898963,0.063,241.34,241.18,53.06312685]
[1738250899289,0.063,241.34,241.32,19.82563916]
[1738250900940,0.063,241.34,241.32,39.65127832]
[1738250901363,0.063,241.34,241.32,19.82563916]
[1738250903086,0.063,241.34,241.32,39.65127832]
[1738250903860,0.063,241.34,241.32,19.82563916]
[1738250905954,0.063,241.34,241.32,39.65127832]
[1738250906491,0.063,241.34,241.33,13.41184853]
[1738250908385,0.02732486,241.38,241.36,13.41184853]
[1738250908688,19.88863916,241.57,241.38,13.41184853]
[1738250908892,19.88863916,241.57,241.39,36.43748769]
[1738250909089,0.063,241.57,241.41,33.41184853]
[1738250909264,0.063,241.57,241.41,72.07127832]
[1738250909595,0.063,241.57,241.43,19.82563916]
[1738250909895,19.82563916,241.53,241.43,19.82563916]
[1738250913164,0.063,241.57,241.56,19.82563916]
[1738250914172,0.063,241.57,241.56,53.06312685]
[1738250914385,26.40643916,241.74,241.59,20.0]
[1738250914560,19.82563916,241.7,241.56,19.82563916]
[1738250914873,19.82563916,241.67,241.59,19.82563916]
[1738250915050,19.82563916,241.69,241.61,19.82563916]
[1738250915249,6.5808,241.74,241.63,19.82563916]
[1738250915250,19.82563916,241.72,241.63,19.82563916]
[1738250915652,19.82563916,241.72,241.65,19.82563916]
[1738250915888,26.40643916,241.74,241.67,19.82563916]
[1738250916059,19.82563916,241.72,241.63,19.82563916]
[1738250916377,26.40643916,241.74,241.65,19.82563916]
[1738250916551,6.5808,241.74,241.69,19.82563916]
[1738250917981,1.5276,241.75,241.71,19.82563916]
[1738250918186,1.5276,241.75,241.61,20.0]
[1738250918187,6.5558,241.8,241.73,19.82563916]
[1738250918391,6.5558,241.8,241.77,19.82563916]
[1738250918690,6.5558,241.8,241.79,19.82563916]
[1738250918691,0.063,241.8,241.79,19.82563916]
[1738250919584,6.155,241.92,241.85,19.82563916]
[1738250920153,20.60072386,241.95,241.87,19.82563916]
[1738250920356,20.60070948,241.95,241.87,19.82563916]
[1738250920556,19.82563916,241.95,241.87,19.82563916]
[1738250920756,0.77503111,241.94,241.85,19.82563916]
[1738250920992,1.6671,241.96,241.89,19.82563916]
[1738250921154,1.6671,241.96,241.92,19.82563916]
[1738250921155,0.063,241.96,241.92,19.82563916]
[1738250921592,19.88863916,241.96,241.88,19.82563916]
[1738250921961,19.88863916,241.96,241.86,19.82563916]
[1738250922163,0.063,241.96,241.88,19.82563916]
[1738250922389,20.66355516,241.96,241.88,19.82563916]
[1738250922596,19.82563916,241.94,241.86,19.82563916]
[1738250922889,19.88863916,241.96,241.88,19.82563916]
[1738250923263,0.063,241.96,241.88,19.82563916]
[1738250923466,0.063,241.96,241.9,19.82563916]
[1738250923683,0.12549,241.95,241.88,19.82563916]
[1738250923891,19.82563916,241.94,241.86,19.82563916]
[1738250924064,0.77507381,241.93,241.84,19.82563916]
[1738250924265,0.77507381,241.93,241.8,19.82563916]
[1738250924266,19.82563916,241.88,241.8,19.82563916]
[1738250924705,19.82563916,241.9,241.82,19.82563916]
[1738250925385,0.77522902,241.89,241.8,19.82563916]
[1738250925599,19.82563916,241.9,241.72,16.65184853]
[1738250925600,19.82563916,241.9,241.82,19.82563916]
[1738250926110,0.77523656,241.91,241.84,19.82563916]
[1738250926282,19.82563916,241.94,241.86,19.82563916]
[1738250926469,19.88863916,241.96,241.88,19.82563916]
[1738250926814,19.82563916,241.92,241.84,19.82563916]
[1738250927105,19.88863916,241.96,241.88,19.82563916]
[1738250927409,0.063,241.96,241.94,19.82563916]
[1738250927569,0.063,241.96,241.92,19.82563916]
[1738250927771,0.063,241.96,241.9,19.82563916]
[1738250928182,20.66364694,241.96,241.88,19.82563916]
[1738250928375,0.12549,241.95,241.88,19.82563916]
[1738250928567,0.12549,241.95,241.74,17.552446]
[1738250928568,0.12549,241.93,241.86,19.82563916]
[1738250928883,0.12549,241.89,241.82,19.82563916]
[1738250929079,19.82563916,241.9,241.82,19.82563916]
[1738250929606,0.12549,241.89,241.82,19.82563916]
[1738250929814,18.98181173,241.94,241.85,19.82563916]
[1738250929973,6.23483061,241.93,241.88,1.0]
[1738250930301,15.54278265,241.95,241.9,21.94525808]